[Event "22nd ETCC Women 2019"]
[Site "Batumi"]
[Date "2019.10.27"]
[Round "4.11"]
[White "Medic, Mirjana"]
[Black "Berzina, Ilze"]
[Result "1/2-1/2"]
[ECO "D12"]
[WhiteElo "2163"]
[BlackElo "2216"]
[Annotator "NA"]
[PlyCount "124"]
[EventDate "2019.10.24"]
[EventType "team-tourn"]
[EventCountry "GEO"]
[SourceTitle "playchess.com"]
[Source "ChessBase"]
[SourceQuality "1"]
[WhiteTeam "Croatia"]
[BlackTeam "Latvia"]
[WhiteTeamCountry "CRO"]
[BlackTeamCountry "LAT"]
[TimeControl "40/5400+30:1800+30"]

1. d4 {[%emt 0:00:00]} d5 {[%emt 0:00:00]} 2. c4 {[%emt 0:00:05]} c6 {[%emt 0:00:00]} 3. Nf3 {[%emt 0:00:22]} Nf6 {[%emt 0:00:00]} 4. e3 {[%emt 0:00:17]} Bf5 {[%emt 0:00:19]} 5. Nc3 {[%emt 0:00:08]} e6 {[%emt 0:00:21]} 6. Nh4 {[%emt 0:00:25]} Be4 {[%emt 0:00:21]} 7. f3 {[%emt 0:00:16]} Bg6 {[%emt 0:00:11]} 8. Qb3 {[%emt 0:00:24]} Qc7 {[%emt 0:00:31]} 9. Bd2 {[%emt 0:00:14]} Be7 {[%emt 0:01:59]} 10. g3 {[%emt 0:02:04]} Bh5 {[%emt 0:01:34]} 11. cxd5 {[%emt 0:06:50]} Nxd5 {[%emt 0:05:23]} 12. Be2 {[%emt 0:06:46]} Bxh4 {[%emt 0:10:04]} 13. gxh4 {[%emt 0:00:02]} Ne7 {[%emt 0:02:04]} 14. O-O-O {[%emt 0:07:21]} Nf5 {[%emt 0:01:46]} 15. Ne4 {[%emt 0:00:44]} Nxh4 {[%emt 0:10:04]} 16. Qxb7 {[%emt 0:18:07]} Qxb7 {[%emt 0:00:13]} 17. Nd6+ {[%emt 0:00:02]} Kd7 {[%emt 0:03:16]} 18. Nxb7 {[%emt 0:00:02]} Kc8 {[%emt 0:12:23]} 19. Nc5 {[%emt 0:01:54]} Bxf3 {[%emt 0:01:04]} 20. Bxf3 {[%emt 0:00:06]} Nxf3 {[%emt 0:00:08]} 21. Ba5 {[%emt 0:00:25]} Nh4 {[%emt 0:06:16]} 22. Rhf1 {[%emt 0:02:54]} Nf5 {[%emt 0:00:53]} 23. e4 {[%emt 0:00:20]} Nd6 {[%emt 0:01:43]} 24. Rd3 {[%emt 0:14:36]} Nd7 {[%emt 0:02:14]} 25. Bb4 {[%emt 0:00:21]} Rb8 {[%emt 0:32:07]} 26. Ba3 {[%emt 0:04:23]} Nxc5 {[%emt 0:00:30]} 27. dxc5 {[%emt 0:03:33]} Nc4 {[%emt 0:00:45]} 28. Rg3 {[%emt 0:01:58]} Nxa3 {[%emt 0:00:41]} 29. Rxa3 {[%emt 0:00:22]} Rb7 {[%emt 0:00:16]} 30. Raf3 {[%emt 0:03:28]} f6 {[%emt 0:00:25]} 31. Kc2 {[%emt 0:04:37]} Rd8 {[%emt 0:01:07]} 32. Kc3 {[%emt 0:03:30]} e5 {[%emt 0:00:33]} 33. Rg1 {[%emt 0:01:32]} Rd4 {[%emt 0:01:17]} 34. Re3 {[%emt 0:00:30]} a5 {[%emt 0:00:39]} 35. b3 {[%emt 0:00:33]} a4 {[%emt 0:02:10]} 36. h3 {[%emt 0:04:25]} h6 {[%emt 0:01:16]} 37. Kc2 {[%emt 0:00:22]} axb3+ {[%emt 0:00:30]} 38. axb3 {[%emt 0:00:02]} Ra7 {[%emt 0:00:31]} 39. Reg3 {[%emt 0:02:07]} Rdd7 {[%emt 0:01:43]} 40. Kc3 {[%emt 0:00:00]} Kd8 {[%emt 0:00:00]} 41. Rd3 {[%emt 0:02:29]} Rxd3+ {[%emt 0:01:01]} 42. Kxd3 {[%emt 0:00:02]} Rd7+ {[%emt 0:00:15]} 43. Kc3 {[%emt 0:00:09]} g5 {[%emt 0:05:59]} 44. h4 {[%emt 0:04:15]} Rd4 {[%emt 0:01:15]} 45. hxg5 {[%emt 0:01:07]} hxg5 {[%emt 0:00:10]} 46. Re1 {[%emt 0:07:39]} Kd7 {[%emt 0:00:36]} 47. b4 {[%emt 0:00:29]} Ke6 {[%emt 0:00:45]} 48. Re2 {[%emt 0:00:30]} g4 {[%emt 0:00:44]} 49. Re1 {[%emt 0:01:01]} g3 {[%emt 0:02:46]} 50. Rg1 {[%emt 0:00:39]} Rxe4 {[%emt 0:00:07]} 51. Rxg3 {[%emt 0:00:02]} Kd5 {[%emt 0:01:10]} 52. Rf3 {[%emt 0:01:16]} Rf4 {[%emt 0:01:28]} 53. Rd3+ {[%emt 0:00:09]} Rd4 {[%emt 0:00:08]} 54. Rf3 {[%emt 0:00:15]} Ke6 {[%emt 0:01:50]} 55. Rh3 {[%emt 0:00:15]} Rd8 {[%emt 0:02:21]} 56. Kc4 {[%emt 0:04:32]} Rd4+ {[%emt 0:09:28]} 57. Kc3 {[%emt 0:00:07]} Rg4 {[%emt 0:01:27]} 58. Rd3 {[%emt 0:00:42]} e4 {[%emt 0:01:14]} 59. Rd6+ {[%emt 0:00:05]} Ke5 {[%emt 0:00:07]} 60. Rxc6 {[%emt 0:00:05]} e3 {[%emt 0:01:28]} 61. Kd3 {[%emt 0:09:31]} Rxb4 {[%emt 0:00:28]} 62. Kxe3 {[%emt 0:00:02]} Kd5 {[%emt 0:02:37] Ke4+} 1/2-1/2

[Event "22nd ETCC Women 2019"]
[Site "Batumi"]
[Date "2019.10.27"]
[Round "4.12"]
[White "Kolotilina, Liudmila"]
[Black "Sargsyan, Anna M."]
[Result "0-1"]
[ECO "D17"]
[WhiteElo "2242"]
[BlackElo "2242"]
[Annotator "NA"]
[PlyCount "76"]
[EventDate "2019.10.24"]
[EventType "team-tourn"]
[EventCountry "GEO"]
[SourceTitle "playchess.com"]
[Source "ChessBase"]
[SourceQuality "1"]
[WhiteTeam "Spain"]
[BlackTeam "Armenia"]
[WhiteTeamCountry "ESP"]
[BlackTeamCountry "ARM"]
[TimeControl "40/5400+30:1800+30"]

1. d4 {[%emt 0:00:00]} d5 {[%emt 0:00:00]} 2. c4 {[%emt 0:00:00]} c6 {[%emt 0:00:03]} 3. Nc3 {[%emt 0:00:00]} Nf6 {[%emt 0:00:07]} 4. Nf3 {[%emt 0:00:01]} dxc4 {[%emt 0:01:02]} 5. a4 {[%emt 0:00:10]} Bf5 {[%emt 0:00:07]} 6. Ne5 {[%emt 0:00:38]} Nbd7 {[%emt 0:00:24]} 7. Nxc4 {[%emt 0:00:16]} Qc7 {[%emt 0:00:49]} 8. g3 {[%emt 0:00:29]} e5 {[%emt 0:00:09]} 9. dxe5 {[%emt 0:00:10]} Nxe5 {[%emt 0:00:06]} 10. Bf4 {[%emt 0:00:22]} Nfd7 {[%emt 0:00:09]} 11. Bg2 {[%emt 0:00:39]} g5 {[%emt 0:00:09]} 12. Bxe5 {[%emt 0:00:31]} Nxe5 {[%emt 0:00:38]} 13. Qd4 {[%emt 0:00:23]} f6 {[%emt 0:02:40]} 14. a5 {[%emt 0:00:41]} Be7 {[%emt 0:04:46]} 15. Nxe5 {[%emt 0:21:20]} fxe5 {[%emt 0:01:00]} 16. Qc4 {[%emt 0:02:06]} Rc8 {[%emt 0:06:09]} 17. O-O {[%emt 0:09:01]} Qd7 {[%emt 0:11:38]} 18. Qb3 {[%emt 0:13:28]} Be6 {[%emt 0:05:47]} 19. Qc2 {[%emt 0:00:03]} O-O {[%emt 0:01:39]} 20. Rad1 {[%emt 0:03:01]} Qc7 {[%emt 0:07:22]} 21. Be4 {[%emt 0:05:37]} Bb4 {[%emt 0:03:27]} 22. Na4 {[%emt 0:06:47]} Qe7 {[%emt 0:04:41]} 23. a6 {[%emt 0:07:48]} bxa6 {[%emt 0:10:33]} 24. Bxc6 {[%emt 0:15:02]} Kh8 {[%emt 0:01:59]} 25. Qe4 {[%emt 0:07:56]} Bf5 {[%emt 0:00:52]} 26. Qg2 {[%emt 0:00:21]} e4 {[%emt 0:03:09]} 27. Bd5 {[%emt 0:00:01]} e3 {[%emt 0:05:51]} 28. f4 {[%emt 0:02:56]} Bc2 {[%emt 0:01:22]} 29. Ra1 {[%emt 0:00:03]} gxf4 {[%emt 0:01:04]} 30. Nc3 {[%emt 0:02:16]} fxg3 {[%emt 0:02:00]} 31. Rxf8+ {[%emt 0:02:18]} Rxf8 {[%emt 0:00:06]} 32. Qxg3 {[%emt 0:00:22]} Bd6 {[%emt 0:00:53]} 33. Qg2 {[%emt 0:00:45]} Bg6 {[%emt 0:01:24]} 34. Rf1 {[%emt 0:00:25]} Rb8 {[%emt 0:09:45]} 35. b3 {[%emt 0:00:03]} Qe5 {[%emt 0:02:24]} 36. Nd1 {[%emt 0:01:09]} Rd8 {[%emt 0:00:26]} 37. Bf3 {[%emt 0:00:22]} Rg8 {[%emt 0:03:04]} 38. Kh1 {[%emt 0:00:01]} Bf5 {[%emt 0:00:23]} 0-1

[Event "22nd ETCC Women 2019"]
[Site "Batumi"]
[Date "2019.10.27"]
[Round "4.12"]
[White "Limanovska, Elizabete"]
[Black "Cvitan, Ena"]
[Result "1/2-1/2"]
[ECO "B10"]
[WhiteElo "2186"]
[BlackElo "2182"]
[Annotator "NA"]
[PlyCount "82"]
[EventDate "2019.10.24"]
[EventType "team-tourn"]
[EventCountry "GEO"]
[SourceTitle "playchess.com"]
[Source "ChessBase"]
[SourceQuality "1"]
[WhiteTeam "Latvia"]
[BlackTeam "Croatia"]
[WhiteTeamCountry "LAT"]
[BlackTeamCountry "CRO"]
[TimeControl "40/5400+30:1800+30"]

1. e4 {[%emt 0:00:00]} c6 {[%emt 0:00:00]} 2. Nf3 {[%emt 0:00:00]} d5 {[%emt 0:00:00]} 3. exd5 {[%emt 0:00:00]} cxd5 {[%emt 0:00:08]} 4. Ne5 {[%emt 0:00:06]} Nc6 {[%emt 0:02:59]} 5. d4 {[%emt 0:00:40]} Qb6 {[%emt 0:01:46]} 6. Nc3 {[%emt 0:13:40]} e6 {[%emt 0:10:27]} 7. Bb5 {[%emt 0:07:08]} Bb4 {[%emt 0:08:09]} 8. O-O {[%emt 0:14:06]} Nge7 {[%emt 0:07:44]} 9. a4 {[%emt 0:24:40]} O-O {[%emt 0:03:46]} 10. Ne2 {[%emt 0:01:05]} f6 {[%emt 0:11:58]} 11. Nxc6 {[%emt 0:03:38]} bxc6 {[%emt 0:01:13]} 12. Bd3 {[%emt 0:00:09]} e5 {[%emt 0:02:24]} 13. c3 {[%emt 0:03:25]} Bd6 {[%emt 0:00:27]} 14. b4 {[%emt 0:04:39]} e4 {[%emt 0:03:48]} 15. Bc2 {[%emt 0:02:17]} Qc7 {[%emt 0:01:31]} 16. h3 {[%emt 0:03:50]} Be6 {[%emt 0:05:35]} 17. Ba3 {[%emt 0:03:12]} Qd7 {[%emt 0:03:33]} 18. b5 {[%emt 0:06:17]} Bb8 {[%emt 0:04:51]} 19. bxc6 {[%emt 0:03:57]} Qc7 {[%emt 0:01:38]} 20. Ng3 {[%emt 0:00:05]} Nf5 {[%emt 0:02:38]} 21. Qe1 {[%emt 0:02:32]} Re8 {[%emt 0:01:33]} 22. f4 {[%emt 0:02:02]} Nxg3 {[%emt 0:08:56]} 23. Qxg3 {[%emt 0:00:04]} Qxc6 {[%emt 0:00:38]} 24. a5 {[%emt 0:00:21]} Bd6 {[%emt 0:01:38]} 25. Ba4 {[%emt 0:00:54]} Qxa4 {[%emt 0:00:05]} 26. Bxd6 {[%emt 0:00:03]} Qc6 {[%emt 0:00:35]} 27. f5 {[%emt 0:01:49]} Bd7 {[%emt 0:00:27]} 28. Rae1 {[%emt 0:00:48]} Qc8 {[%emt 0:01:33]} 29. Bc5 {[%emt 0:01:37]} Bxf5 {[%emt 0:01:26]} 30. Re3 {[%emt 0:00:09]} Bg6 {[%emt 0:02:00]} 31. Qf4 {[%emt 0:01:07]} Qa6 {[%emt 0:01:46]} 32. Bb4 {[%emt 0:00:33]} Rac8 {[%emt 0:01:05]} 33. h4 {[%emt 0:00:13]} Kh8 {[%emt 0:01:56]} 34. g4 {[%emt 0:00:31]} h6 {[%emt 0:01:43]} 35. Rf2 {[%emt 0:00:19]} Qc6 {[%emt 0:00:33]} 36. g5 {[%emt 0:01:15]} fxg5 {[%emt 0:00:21]} 37. hxg5 {[%emt 0:00:04]} h5 {[%emt 0:00:32]} 38. Rh3 {[%emt 0:00:48]} Kg8 {[%emt 0:00:42]} 39. Qe3 {[%emt 0:00:40]} Qd7 {[%emt 0:02:23]} 40. Rh4 {[%emt 0:00:00]} Qd8 {[%emt 0:00:00]} 41. Kh1 {[%emt 0:02:38]} Qd7 {[%emt 0:04:38]} 1/2-1/2

[Event "22nd ETCC Women 2019"]
[Site "Batumi"]
[Date "2019.10.27"]
[Round "4.13"]
[White "Atalik, Ekaterina"]
[Black "Ushenina, Anna"]
[Result "1/2-1/2"]
[ECO "A06"]
[WhiteElo "2464"]
[BlackElo "2431"]
[Annotator "ChessBase"]
[PlyCount "67"]
[EventDate "2019.10.24"]
[EventType "team-tourn"]
[EventCountry "GEO"]
[SourceTitle "playchess.com"]
[Source "ChessBase"]
[SourceQuality "1"]
[WhiteTeam "Turkey"]
[BlackTeam "Ukraine"]
[WhiteTeamCountry "TUR"]
[BlackTeamCountry "UKR"]
[TimeControl "40/5400+30:1800+30"]

1. Nf3 {[%emt 0:00:00]} d5 {[%emt 0:00:30]} 2. c4 {[%emt 0:00:07]} e6 {[%emt 0:01:34]} 3. e3 {[%emt 0:00:09]} Nf6 {[%emt 0:00:43]} 4. Nc3 {[%emt 0:00:16]} a6 {[%emt 0:00:29]} 5. b3 {[%emt 0:06:21]} c5 {[%emt 0:00:35]} 6. Bb2 {[%emt 0:01:22]} Nc6 {[%emt 0:00:54]} 7. cxd5 {[%emt 0:01:11]} exd5 {[%emt 0:00:15]} 8. d4 {[%emt 0:01:05]} Bg4 {[%emt 0:00:36]} 9. Be2 {[%emt 0:02:48]} Bxf3 {[%emt 0:00:30]} 10. Bxf3 {[%emt 0:00:11]} cxd4 {[%emt 0:00:04]} 11. exd4 {[%emt 0:00:05]} Bb4 {[%emt 0:00:04]} 12. O-O {[%emt 0:02:13]} Bxc3 {[%emt 0:00:15]} 13. Bxc3 {[%emt 0:00:43]} O-O {[%emt 0:00:05]} 14. Qd3 {[%emt 0:00:53]} Qd7 {[%emt 0:15:35]} 15. Rfe1 {[%emt 0:05:42]} Rfe8 {[%emt 0:00:30]} 16. Kf1 {[%emt 0:06:52]} Ng4 {[%emt 0:02:27]} 17. Kg1 {[%emt 0:04:50]} Nf6 {[%emt 0:00:05]} 18. h3 {[%emt 0:09:08]} h6 {[%emt 0:02:19]} 19. Bd2 {[%emt 0:09:54]} Rxe1+ {[%emt 0:12:37]} 20. Rxe1 {[%emt 0:00:28]} Re8 {[%emt 0:00:46]} 21. Be3 {[%emt 0:05:02]} Ne4 {[%emt 0:02:11]} 22. Rc1 {[%emt 0:04:06]} Qd6 {[%emt 0:03:08]} 23. Bg4 {[%emt 0:08:35]} Nf6 {[%emt 0:07:20]} 24. Qd1 {[%emt 0:08:24]} Nxg4 {[%emt 0:02:49]} 25. Qxg4 {[%emt 0:00:12]} Qe6 {[%emt 0:11:42]} 26. Qf3 {[%emt 0:05:45]} Rc8 {[%emt 0:03:50]} 27. Rc5 {[%emt 0:01:46]} Rd8 {[%emt 0:11:03]} 28. g4 {[%emt 0:03:18]} b6 {[%emt 0:03:26]} 29. Rc1 {[%emt 0:00:44]} Rc8 {[%emt 0:00:06]} 30. Qe2 {[%emt 0:03:07]} Nb8 {[%emt 0:00:49]} 31. Rxc8+ {[%emt 0:02:40]} Qxc8 {[%emt 0:00:01]} 32. Qf3 {[%emt 0:01:50]} Qd7 {[%emt 0:00:39]} 33. Kg2 {[%emt 0:01:50]} Nc6 {[%emt 0:00:13]} 34. Qe2 {[%emt 0:03:36]} 1/2-1/2

[Event "22nd ETCC Women 2019"]
[Site "Batumi"]
[Date "2019.10.27"]
[Round "4.13"]
[White "Nazarova, Anastasia"]
[Black "Koridze, Lile"]
[Result "0-1"]
[ECO "B38"]
[WhiteElo "2147"]
[BlackElo "1988"]
[Annotator "NA"]
[PlyCount "134"]
[EventDate "2019.10.24"]
[EventType "team-tourn"]
[EventCountry "GEO"]
[SourceTitle "playchess.com"]
[Source "ChessBase"]
[SourceQuality "1"]
[WhiteTeam "Finland"]
[BlackTeam "Georgia"]
[WhiteTeamCountry "FIN"]
[BlackTeamCountry "GEO"]
[TimeControl "40/5400+30:1800+30"]

1. e4 {[%emt 0:00:00]} c5 {[%emt 0:00:00]} 2. Nf3 {[%emt 0:00:00]} Nc6 {[%emt 0:00:00]} 3. d4 {[%emt 0:00:00]} cxd4 {[%emt 0:00:00]} 4. Nxd4 {[%emt 0:00:00]} g6 {[%emt 0:00:12]} 5. c4 {[%emt 0:02:21]} Bg7 {[%emt 0:00:15]} 6. Be3 {[%emt 0:00:05]} d6 {[%emt 0:00:33]} 7. Nc3 {[%emt 0:00:44]} Nf6 {[%emt 0:00:30]} 8. Be2 {[%emt 0:00:08]} O-O {[%emt 0:00:36]} 9. Qd2 {[%emt 0:03:07]} Bd7 {[%emt 0:02:28]} 10. f3 {[%emt 0:04:13]} a6 {[%emt 0:02:16]} 11. Rc1 {[%emt 0:07:51]} Rc8 {[%emt 0:04:50]} 12. O-O {[%emt 0:01:57]} Nxd4 {[%emt 0:11:10]} 13. Bxd4 {[%emt 0:00:11]} Be6 {[%emt 0:00:37]} 14. b3 {[%emt 0:10:57]} Nd7 {[%emt 0:00:32]} 15. Bxg7 {[%emt 0:11:02]} Kxg7 {[%emt 0:00:04]} 16. f4 {[%emt 0:00:04]} Qb6+ {[%emt 0:04:47]} 17. Kh1 {[%emt 0:00:17]} f6 {[%emt 0:07:56]} 18. Bf3 {[%emt 0:07:49]} Qb4 {[%emt 0:08:43]} 19. Qe2 {[%emt 0:12:48]} Bf7 {[%emt 0:10:24]} 20. Bg4 {[%emt 0:04:53]} Rc7 {[%emt 0:07:10]} 21. Bxd7 {[%emt 0:03:46]} Rxd7 {[%emt 0:00:06]} 22. e5 {[%emt 0:01:50]} dxe5 {[%emt 0:09:37]} 23. fxe5 {[%emt 0:00:04]} Qb6 {[%emt 0:07:47]} 24. Ne4 {[%emt 0:11:57]} Bg8 {[%emt 0:02:13]} 25. Rce1 {[%emt 0:06:52]} Be6 {[%emt 0:09:01]} 26. Qf3 {[%emt 0:05:53]} f5 {[%emt 0:01:29]} 27. Ng5 {[%emt 0:02:12]} Rc8 {[%emt 0:03:25]} 28. Qe2 {[%emt 0:01:55]} h6 {[%emt 0:01:43]} 29. Nf3 {[%emt 0:00:07]} Rcd8 {[%emt 0:00:21]} 30. Rc1 {[%emt 0:01:03]} Qc6 {[%emt 0:00:53]} 31. Rfe1 {[%emt 0:00:37]} Rd3 {[%emt 0:00:44]} 32. Qf2 {[%emt 0:00:23]} R8d7 {[%emt 0:01:18]} 33. Qh4 {[%emt 0:00:46]} Rxf3 {[%emt 0:03:37]} 34. gxf3 {[%emt 0:00:23]} Qxf3+ {[%emt 0:00:04]} 35. Kg1 {[%emt 0:00:04]} f4 {[%emt 0:00:38]} 36. Qf2 {[%emt 0:00:49]} Qg4+ {[%emt 0:00:34]} 37. Qg2 {[%emt 0:00:46]} Qf5 {[%emt 0:00:21]} 38. Rcd1 {[%emt 0:00:25]} Rc7 {[%emt 0:00:47]} 39. Rd4 {[%emt 0:00:31]} Bd7 {[%emt 0:00:29]} 40. h3 {[%emt 0:00:00]} f3 {[%emt 0:00:00]} 41. Qf2 {[%emt 0:07:42]} Qxh3 {[%emt 0:02:44]} 42. Rf4 {[%emt 0:08:18]} Bg4 {[%emt 0:05:07]} 43. Rd1 {[%emt 0:08:34]} g5 {[%emt 0:00:47]} 44. Rfd4 {[%emt 0:01:02]} Be6 {[%emt 0:01:33]} 45. Qh2 {[%emt 0:02:02]} Qf5 {[%emt 0:02:00]} 46. Rf1 {[%emt 0:01:56]} Rc5 {[%emt 0:02:19]} 47. Qg3 {[%emt 0:00:43]} Qxe5 {[%emt 0:00:59]} 48. Qxe5+ {[%emt 0:00:17]} Rxe5 {[%emt 0:00:05]} 49. Rxf3 {[%emt 0:00:04]} g4 {[%emt 0:00:30]} 50. Rff4 {[%emt 0:00:42]} Bf5 {[%emt 0:04:16]} 51. Kf2 {[%emt 0:02:19]} h5 {[%emt 0:03:22]} 52. Rd5 {[%emt 0:01:29]} Kf6 {[%emt 0:03:37]} 53. Rfd4 {[%emt 0:01:10]} h4 {[%emt 0:00:44]} 54. Rd8 {[%emt 0:00:23]} Ra5 {[%emt 0:02:12]} 55. a4 {[%emt 0:00:18]} Be6 {[%emt 0:01:38]} 56. Rh8 {[%emt 0:00:49]} Rf5+ {[%emt 0:00:56]} 57. Kg1 {[%emt 0:00:37]} Kg5 {[%emt 0:00:55]} 58. Re4 {[%emt 0:00:09]} Rf6 {[%emt 0:00:42]} 59. Re8 {[%emt 0:00:47]} Kf5 {[%emt 0:00:13]} 60. Re2 {[%emt 0:00:19]} g3 {[%emt 0:03:08]} 61. Rxe7 {[%emt 0:00:18]} Rh6 {[%emt 0:03:04]} 62. Re3 {[%emt 0:01:22]} Rg6 {[%emt 0:00:28]} 63. Re1 {[%emt 0:00:45]} h3 {[%emt 0:00:31]} 64. Rf1+ {[%emt 0:00:15]} Kg4 {[%emt 0:00:31]} 65. Rd1 {[%emt 0:00:44]} Kf3 {[%emt 0:00:45]} 66. Re8 {[%emt 0:00:29]} h2+ {[%emt 0:00:09]} 67. Kh1 {[%emt 0:00:06]} g2+ {[%emt 0:00:04]} 0-1

[Event "22nd ETCC Women 2019"]
[Site "Batumi"]
[Date "2019.10.27"]
[Round "4.14"]
[White "Gaponenko, Inna"]
[Black "Yildiz Kadioglu, Betul Cemre"]
[Result "1/2-1/2"]
[ECO "C43"]
[WhiteElo "2427"]
[BlackElo "2338"]
[Annotator "NA"]
[PlyCount "114"]
[EventDate "2019.10.24"]
[EventType "team-tourn"]
[EventCountry "GEO"]
[SourceTitle "playchess.com"]
[Source "ChessBase"]
[SourceQuality "1"]
[WhiteTeam "Ukraine"]
[BlackTeam "Turkey"]
[WhiteTeamCountry "UKR"]
[BlackTeamCountry "TUR"]
[TimeControl "40/5400+30:1800+30"]

1. e4 {[%emt 0:00:00]} e5 {[%emt 0:00:00]} 2. Nf3 {[%emt 0:00:00]} Nf6 {[%emt 0:00:00]} 3. d4 {[%emt 0:08:52]} Nxe4 {[%emt 0:00:21]} 4. Bd3 {[%emt 0:00:28]} d5 {[%emt 0:01:09]} 5. Nxe5 {[%emt 0:00:20]} Nd7 {[%emt 0:01:59]} 6. Nc3 {[%emt 0:00:44]} Nxc3 {[%emt 0:08:26]} 7. bxc3 {[%emt 0:00:09]} Nxe5 {[%emt 0:03:49]} 8. dxe5 {[%emt 0:00:07]} Bc5 {[%emt 0:00:58]} 9. O-O {[%emt 0:12:17]} c6 {[%emt 0:06:22]} 10. Qh5 {[%emt 0:23:35]} Be6 {[%emt 0:12:34]} 11. Rb1 {[%emt 0:01:06]} Qd7 {[%emt 0:10:02]} 12. Bg5 {[%emt 0:04:23]} b6 {[%emt 0:07:17]} 13. Rfe1 {[%emt 0:15:11]} Bg4 {[%emt 0:09:28]} 14. Qh4 {[%emt 0:01:14]} Qe6 {[%emt 0:01:40]} 15. Be3 {[%emt 0:07:47]} Bxe3 {[%emt 0:09:15]} 16. Rxe3 {[%emt 0:00:03]} Bf5 {[%emt 0:00:25]} 17. Qg5 {[%emt 0:02:36]} Bg6 {[%emt 0:01:53]} 18. f4 {[%emt 0:09:27]} h6 {[%emt 0:06:32]} 19. Qg3 {[%emt 0:01:18]} O-O-O {[%emt 0:01:57]} 20. Qh3 {[%emt 0:03:45]} Qxh3 {[%emt 0:09:01]} 21. Rxh3 {[%emt 0:00:02]} Bxd3 {[%emt 0:00:38]} 22. cxd3 {[%emt 0:00:06]} d4 {[%emt 0:00:30]} 23. c4 {[%emt 0:00:29]} Rde8 {[%emt 0:01:47]} 24. Re1 {[%emt 0:02:12]} Re7 {[%emt 0:00:57]} 25. Rg3 {[%emt 0:01:25]} f6 {[%emt 0:03:32]} 26. e6 {[%emt 0:00:28]} f5 {[%emt 0:00:10]} 27. Re5 {[%emt 0:00:32]} Rf8 {[%emt 0:00:16]} 28. Rg6 {[%emt 0:00:27]} Kc7 {[%emt 0:01:29]} 29. h4 {[%emt 0:01:49]} Kd6 {[%emt 0:00:24]} 30. Kf2 {[%emt 0:00:10]} a6 {[%emt 0:01:28]} 31. a4 {[%emt 0:00:29]} Kc7 {[%emt 0:00:37]} 32. h5 {[%emt 0:00:32]} Kd6 {[%emt 0:00:06]} 33. Kf3 {[%emt 0:00:26]} Rf6 {[%emt 0:00:19]} 34. Rxf6 {[%emt 0:00:38]} gxf6 {[%emt 0:00:02]} 35. Rxf5 {[%emt 0:00:05]} Rxe6 {[%emt 0:01:03]} 36. Kg4 {[%emt 0:01:41]} Ke7 {[%emt 0:00:28]} 37. a5 {[%emt 0:00:03]} bxa5 {[%emt 0:00:56]} 38. Rxa5 {[%emt 0:00:03]} Re3 {[%emt 0:00:35]} 39. Rxa6 {[%emt 0:00:33]} Kd6 {[%emt 0:00:06]} 40. Kf5 {[%emt 0:00:00]} Rxd3 {[%emt 0:00:00]} 41. Kxf6 {[%emt 0:04:01]} Rg3 {[%emt 0:03:58]} 42. Ra2 {[%emt 0:00:31]} Kc5 {[%emt 0:04:53]} 43. f5 {[%emt 0:04:36]} d3 {[%emt 0:01:33]} 44. Ke7 {[%emt 0:09:25]} Re3+ {[%emt 0:01:51]} 45. Kd7 {[%emt 0:00:13]} Re2 {[%emt 0:03:42]} 46. Ra1 {[%emt 0:00:04]} d2 {[%emt 0:07:11]} 47. f6 {[%emt 0:00:30]} Rxg2 {[%emt 0:09:32]} 48. f7 {[%emt 0:00:34]} Rf2 {[%emt 0:00:05]} 49. Ke7 {[%emt 0:00:12]} Kxc4 {[%emt 0:01:29]} 50. f8=Q {[%emt 0:00:33]} Rxf8 {[%emt 0:00:05]} 51. Kxf8 {[%emt 0:00:03]} Kd3 {[%emt 0:01:43]} 52. Kg7 {[%emt 0:00:19]} c5 {[%emt 0:00:18]} 53. Kxh6 {[%emt 0:00:11]} c4 {[%emt 0:00:05]} 54. Kg6 {[%emt 0:02:21]} c3 {[%emt 0:00:03]} 55. h6 {[%emt 0:00:03]} c2 {[%emt 0:00:20]} 56. h7 {[%emt 0:00:04]} d1=Q {[%emt 0:00:57]} 57. Rxd1+ {[%emt 0:00:30]} cxd1=Q {[%emt 0:00:10]} 1/2-1/2

[Event "22nd ETCC Women 2019"]
[Site "Batumi"]
[Date "2019.10.27"]
[Round "4.14"]
[White "Pipia, Ekaterine"]
[Black "Dannenberg, Alia"]
[Result "1-0"]
[ECO "E94"]
[WhiteElo "1935"]
[BlackElo "1902"]
[Annotator "NA"]
[PlyCount "83"]
[EventDate "2019.10.24"]
[EventType "team-tourn"]
[EventCountry "GEO"]
[SourceTitle "playchess.com"]
[Source "ChessBase"]
[SourceQuality "1"]
[WhiteTeam "Georgia"]
[BlackTeam "Finland"]
[WhiteTeamCountry "GEO"]
[BlackTeamCountry "FIN"]
[TimeControl "40/5400+30:1800+30"]

1. d4 {[%emt 0:00:00]} Nf6 {[%emt 0:00:00]} 2. c4 {[%emt 0:00:00]} g6 {[%emt 0:00:00]} 3. Nc3 {[%emt 0:00:00]} Bg7 {[%emt 0:00:00]} 4. e4 {[%emt 0:00:00]} d6 {[%emt 0:00:00]} 5. Nf3 {[%emt 0:00:00]} O-O {[%emt 0:00:00]} 6. Be2 {[%emt 0:00:00]} e5 {[%emt 0:00:10]} 7. O-O {[%emt 0:00:00]} Qe8 {[%emt 0:00:08]} 8. d5 {[%emt 0:01:56]} a5 {[%emt 0:00:26]} 9. h3 {[%emt 0:02:24]} Na6 {[%emt 0:00:34]} 10. Be3 {[%emt 0:00:30]} Nd7 {[%emt 0:01:22]} 11. Nd2 {[%emt 0:01:02]} Ndc5 {[%emt 0:01:44]} 12. b3 {[%emt 0:02:43]} Bd7 {[%emt 0:02:44]} 13. a3 {[%emt 0:00:43]} f5 {[%emt 0:00:35]} 14. f3 {[%emt 0:00:42]} f4 {[%emt 0:02:36]} 15. Bf2 {[%emt 0:00:21]} g5 {[%emt 0:00:52]} 16. Rb1 {[%emt 0:00:36]} b6 {[%emt 0:00:50]} 17. b4 {[%emt 0:04:29]} Nb7 {[%emt 0:03:12]} 18. Bd3 {[%emt 0:12:34]} h5 {[%emt 0:05:08]} 19. Qe2 {[%emt 0:00:33]} Nb8 {[%emt 0:06:41]} 20. Nb5 {[%emt 0:05:24]} Qc8 {[%emt 0:08:11]} 21. c5 {[%emt 0:02:50]} bxc5 {[%emt 0:09:06]} 22. bxc5 {[%emt 0:00:08]} dxc5 {[%emt 0:03:35]} 23. Rfc1 {[%emt 0:02:15]} g4 {[%emt 0:02:59]} 24. hxg4 {[%emt 0:01:37]} hxg4 {[%emt 0:00:02]} 25. fxg4 {[%emt 0:00:12]} Bxg4 {[%emt 0:01:41]} 26. Nf3 {[%emt 0:00:00]} Nd7 {[%emt 0:01:58]} 27. Qa2 {[%emt 0:02:51]} Kh8 {[%emt 0:08:55]} 28. Kf1 {[%emt 0:00:21]} Bf6 {[%emt 0:12:59]} 29. Ke2 {[%emt 0:01:05]} Kg7 {[%emt 0:01:49]} 30. Rh1 {[%emt 0:03:08]} Nd6 {[%emt 0:01:20]} 31. Qc2 {[%emt 0:03:38]} Nxb5 {[%emt 0:06:10]} 32. Bxb5 {[%emt 0:00:45]} Be7 {[%emt 0:00:48]} 33. Qc3 {[%emt 0:01:54]} Bd6 {[%emt 0:01:06]} 34. Kd3 {[%emt 0:07:03]} Bxf3 {[%emt 0:04:32]} 35. gxf3 {[%emt 0:00:07]} Rf6 {[%emt 0:00:19]} 36. Rbg1+ {[%emt 0:04:25]} Rg6 {[%emt 0:00:26]} 37. Rxg6+ {[%emt 0:01:07]} Kxg6 {[%emt 0:00:02]} 38. Qc1 {[%emt 0:00:26]} Nf6 {[%emt 0:02:29]} 39. Qg1+ {[%emt 0:16:33]} Kf7 {[%emt 0:00:14]} 40. Qg5 {[%emt 0:00:00]} Rb8 {[%emt 0:00:00]} 41. Rh6 {[%emt 0:02:21]} Ng8 {[%emt 0:24:03]} 42. Rh7+ {[%emt 0:00:40]} 1-0